fUST/lending_fUST_20240111
["ID","MTS","AMOUNT","RATE_DAILY","PERIOD"]
[311169954,1704961840590,-500.0,0.00030136,2]
[311169955,1704961840601,-500.0,0.00030136,2]
[311169956,1704961840612,-500.0,0.00030136,2]
[311169957,1704961840623,-500.0,0.00030136,2]
[311169958,1704961840634,-500.0,0.00030136,2]
[311169959,1704961840645,-500.0,0.00030136,2]
[311169960,1704961840656,-341.22,0.00030136,2]
[311169961,1704961840668,-186.76567446,0.00030136,2]
[311169962,1704961840679,-500.0,0.00030136,2]
[311169963,1704961840690,-500.0,0.00030136,2]
[311169964,1704961840700,-496.52210292,0.00030136,2]
[311169965,1704961840712,-500.0,0.00030136,2]
[311169966,1704961840722,-500.0,0.00030136,2]
[311169967,1704961840733,-502.0635084,0.00030136,2]
[311169968,1704961840744,-633.44866808,0.00030136,2]
[311169969,1704961840755,-1874.21,0.00030136,2]
[311169970,1704961840767,-500.0,0.00030136,2]
[311169971,1704961840778,-500.0,0.00030136,2]
[311169972,1704961840789,-408.77456977,0.00030136,2]
[311169973,1704961840799,-502.22060965,0.00030136,2]
[311169974,1704961840811,-500.0,0.00030136,2]
[311169975,1704961840822,-500.0,0.00030136,2]
[311169976,1704961840833,-500.0,0.00030136,2]
[311169977,1704961840844,-625.13,0.00030136,2]
[311169978,1704961840855,-500.0,0.00030136,2]
[311169979,1704961840866,-500.0,0.00030136,2]
[311169980,1704961840877,-500.0,0.00030136,2]
[311169981,1704961840887,-500.0,0.00030136,2]
[311169982,1704961840898,-500.0,0.00030136,2]
[311169983,1704961840909,-500.0,0.00030136,2]
[311169984,1704961840921,-500.0,0.00030136,2]
[311169985,1704961840934,-500.0,0.00030136,2]
[311169986,1704961840945,-500.0,0.00030136,2]
[311169987,1704961840954,-500.0,0.00030136,2]
[311169988,1704961840963,-500.0,0.00030136,2]
[311169989,1704961840972,-500.0,0.00030136,2]
[311169990,1704961840981,-500.0,0.00030136,2]
[311169991,1704961840991,-500.0,0.00030136,2]
[311169992,1704961841001,-500.0,0.00030136,2]
[311169993,1704961841134,-500.0,0.00030136,2]
[311169994,1704961841146,-500.0,0.00030136,2]
[311169995,1704961841155,-474.98127692,0.00030136,2]
[311169996,1704961841165,-500.0,0.00030136,2]
[311169997,1704961841175,-500.0,0.00030136,2]
[311169998,1704961841184,-500.0,0.00030136,2]
[311169999,1704961841194,-500.0,0.00030136,2]
[311170000,1704961841204,-215.02371983,0.00030136,2]
[311170001,1704961841213,-507.68147259,0.00030136,2]
[311170002,1704961841222,-501.28748838,0.00030136,2]
[311170003,1704961841231,-502.49872204,0.00030136,2]
[311170004,1704961841241,-500.0,0.00030136,2]
[311170005,1704961841250,-500.0,0.00030136,2]
[311170006,1704961841260,-500.0,0.00030136,2]
[311170007,1704961841269,-225.87099317,0.00030136,2]
[311170009,1704961841278,-500.0,0.00030136,2]
[311170010,1704961841287,-500.0,0.00030136,2]
[311170012,1704961841295,-500.0,0.00030136,2]
[311170014,1704961841304,-500.0,0.00030136,2]
[311170016,1704961841313,-500.0,0.00030136,2]
[311170017,1704961841323,-500.0,0.00030136,2]
[311170018,1704961841332,-590.53,0.00030136,2]
[311170019,1704961841341,-500.0,0.00030136,2]
[311170020,1704961841350,-500.0,0.00030136,2]
[311170021,1704961841359,-500.0,0.00030136,2]
[311170022,1704961841368,-500.0,0.00030136,2]
[311170023,1704961841377,-500.0,0.00030136,2]
[311170024,1704961841386,-500.0,0.00030136,2]
[311170025,1704961841395,-230.84334159,0.00030136,2]
[311170026,1704961841403,-500.0,0.00030136,2]
[311170027,1704961841411,-1011.98987962,0.00030136,5]
[311170028,1704961841421,-500.0,0.00030136,2]
[311170029,1704961841432,-500.0,0.00030136,2]
[311170030,1704961841440,-500.0,0.00030136,2]
[311170031,1704961841450,-500.0,0.00030136,2]
[311170032,1704961841459,-500.0,0.00030136,2]
[311170033,1704961841468,-500.0,0.00030136,2]
[311170034,1704961841477,-500.0,0.00030136,2]
[311170035,1704961841488,-500.0,0.00030136,2]
[311170036,1704961841522,-500.0,0.00030136,2]
[311170037,1704961841531,-503.58951004,0.00030136,2]
[311170038,1704961841540,-506.61528026,0.00030136,2]
[311170039,1704961841549,-500.0,0.00030136,2]
[311170040,1704961841558,-500.0,0.00030136,2]
[311170041,1704961841567,-500.0,0.00030136,2]
[311170042,1704961841577,-688.78,0.00030136,2]
[311170043,1704961841586,-500.0,0.00030136,2]
[311170044,1704961841595,-500.0,0.00030136,2]
[311170045,1704961841605,-500.0,0.00030136,2]
[311170046,1704961841614,-500.0,0.00030136,2]
[311170047,1704961841623,-500.0,0.00030136,2]
[311170048,1704961841632,-500.0,0.00030136,2]
[311170049,1704961841641,-505.49538568,0.00030136,2]
[311170050,1704961841650,-500.0,0.00030136,2]
[311170051,1704961841659,-500.0,0.00030136,2]
[311170052,1704961841669,-500.0,0.00030136,2]
[311170053,1704961841679,-500.0,0.00030136,2]
[311170054,1704961841688,-500.0,0.00030136,2]
[311170055,1704961841697,-500.0,0.00030136,2]
[311170056,1704961841705,-500.0,0.00030136,2]
[311170057,1704961841714,-500.0,0.00030136,2]
[311170058,1704961841723,-500.0,0.00030136,2]
[311170059,1704961841732,-500.0,0.00030136,2]
[311170060,1704961841741,-503.53888354,0.00030136,2]
[311170061,1704961841750,-500.0,0.00030136,2]
[311170062,1704961841758,-500.0,0.00030136,2]
[311170063,1704961841767,-500.0,0.00030136,2]
[311170064,1704961841776,-823.01,0.00030136,2]
[311170065,1704961841785,-500.0,0.00030136,2]
[311170066,1704961841794,-500.0,0.00030136,2]
[311170067,1704961841803,-500.0,0.00030136,2]
[311170068,1704961841812,-500.0,0.00030136,2]
[311170069,1704961841821,-500.0,0.00030136,2]
[311170070,1704961841830,-503.18365884,0.00030136,2]
[311170071,1704961841839,-500.0,0.00030136,2]
[311170072,1704961841848,-500.0,0.00030136,2]
[311170073,1704961841857,-507.36864681,0.00030136,2]
[311170074,1704961841865,-500.0,0.00030136,2]
[311170075,1704961841874,-623.42,0.00030136,2]
[311170076,1704961841883,-500.0,0.00030136,2]
[311170077,1704961841892,-500.0,0.00030136,2]
[311170078,1704961841901,-500.0,0.00030136,2]
[311170079,1704961841910,-500.0,0.00030136,2]
[311170080,1704961841919,-500.0,0.00030136,2]
[311170081,1704961841928,-546.60647437,0.00030136,2]
[311170082,1704961841937,-500.0,0.00030136,2]
[311170083,1704961841946,-500.0,0.00030136,2]
[311170084,1704961841955,-500.0,0.00030136,2]
[311170085,1704961841964,-500.0,0.00030136,2]
[311170086,1704961841973,-500.0,0.00030136,2]
[311170087,1704961841982,-500.0,0.00030136,2]
[311170088,1704961841992,-500.0,0.00030136,2]
[311170089,1704961842003,-3493.58,0.00030136,2]
[311170090,1704961842012,-330.37774473,0.00030136,2]
[311170091,1704961842020,-500.0,0.00030136,2]
[311170092,1704961842031,-500.0,0.00030136,2]
[311170093,1704961842040,-651.91,0.00030136,2]
[311170094,1704961842049,-651.91,0.00030136,2]
[311170095,1704961842058,-651.91,0.00030136,2]
[311170096,1704961842066,-500.0,0.00030136,2]
[311170097,1704961842076,-651.91,0.00030136,2]
[311170098,1704961842085,-651.91,0.00030136,2]
[311170099,1704961842095,-651.91,0.00030136,2]
[311170100,1704961842103,-525.22608399,0.00030136,2]
[311170101,1704961842112,-651.91,0.00030136,2]
[311170102,1704961842121,-651.91,0.00030136,2]
[311170103,1704961842130,-651.91,0.00030136,2]
[311170104,1704961842139,-651.91,0.00030136,2]
[311170105,1704961842148,-651.91,0.00030136,2]
[311170106,1704961842157,-651.91,0.00030136,2]
[311170107,1704961842166,-651.91,0.00030136,2]
[311170108,1704961842175,-500.0,0.00030136,2]
[311170109,1704961842184,-651.91,0.00030136,2]
[311170110,1704961842193,-651.91,0.00030136,2]
[311170111,1704961842202,-651.91,0.00030136,2]
[311170112,1704961842211,-651.91,0.00030136,2]
[311170113,1704961842220,-651.91,0.00030136,2]
[311170114,1704961842229,-651.91,0.00030136,2]
[311170115,1704961842240,-651.91,0.00030136,2]
[311170116,1704961842249,-651.91,0.00030136,2]
[311170117,1704961842258,-651.91,0.00030136,2]
[311170118,1704961842267,-651.91,0.00030136,2]
[311170119,1704961842276,-735.22,0.00030136,2]
[311170120,1704961842285,-652.09273758,0.00030136,2]
[311170121,1704961842295,-500.0,0.00030136,2]
[311170122,1704961842304,-500.0,0.00030136,2]
[311170123,1704961842312,-500.0,0.00030136,2]
[311170124,1704961842322,-1088.35,0.00030136,2]
[311170125,1704961842331,-500.0,0.00030136,2]
[311170126,1704961842340,-500.0,0.00030136,2]
[311170127,1704961842349,-500.0,0.00030136,2]
[311170128,1704961842358,-500.0,0.00030136,2]
[311170129,1704961842367,-471.53290531,0.00030136,2]
[311170130,1704961842376,-515.14845484,0.00030136,2]
[311170131,1704961842385,-500.0,0.00030136,2]
[311170132,1704961842394,-500.0,0.00030136,2]
[311170133,1704961842403,-6233.73,0.00030136,2]
[311170134,1704961842412,-500.0,0.00030136,2]
[311170135,1704961842421,-522.18,0.00030136,2]
[311170136,1704961842431,-500.0,0.00030136,2]
[311170137,1704961842440,-506.55738065,0.00030136,2]
[311170138,1704961842450,-6525.09,0.00030136,2]
[311170139,1704961842459,-500.0,0.00030136,2]
[311170140,1704961842468,-500.0,0.00030136,2]
[311170141,1704961842477,-500.0,0.00030136,2]
[311170142,1704961842486,-500.0,0.00030136,2]
[311170143,1704961842495,-503.69029425,0.00030136,2]
[311170144,1704961842504,-500.0,0.00030136,2]
[311170145,1704961842514,-1358.57,0.00030136,2]
[311170147,1704961842523,-500.0,0.00030136,2]
[311170149,1704961842532,-411.81553534,0.00030136,2]
[311170151,1704961842541,-510.03142022,0.00030136,2]
[311170152,1704961842550,-2550.85,0.00030136,2]
[311170153,1704961842559,-501.40685239,0.00030136,2]
[311170154,1704961842570,-3580.01,0.00030136,2]
[311170156,1704961842578,-500.0,0.00030136,2]
[311170158,1704961842587,-500.0,0.00030136,2]
[311170160,1704961842596,-509.18685247,0.00030136,2]
[311170161,1704961842607,-500.0,0.00030136,2]
[311170162,1704961842616,-500.0,0.00030136,2]
[311170163,1704961842625,-503.66399589,0.00030136,2]
[311170165,1704961842634,-500.0,0.00030136,2]
[311170167,1704961842643,-281.74517376,0.00030136,2]
[311170168,1704961842652,-503.24922674,0.00030136,2]
[311170170,1704961842661,-1742.05,0.00030136,2]
[311170172,1704961842670,-500.0,0.00030136,2]
[311170173,1704961842680,-560.66390144,0.00030136,2]
[311170174,1704961842689,-500.0,0.00030136,2]
[311170175,1704961842697,-500.0,0.00030136,2]
[311170176,1704961842707,-500.0,0.00030136,2]
[311170177,1704961842716,-631.94,0.00030136,2]
[311170178,1704961842725,-500.0,0.00030136,2]
[311170179,1704961842734,-500.0,0.00030136,2]
[311170180,1704961842745,-500.0,0.00030136,2]
[311170181,1704961842755,-500.0,0.00030136,2]
[311170182,1704961842766,-459.0460775,0.00030136,2]
[311170183,1704961842776,-156.25447643,0.00030136,2]
[311170184,1704961842787,-500.55430526,0.00030136,2]
[311170185,1704961842796,-500.0,0.00030136,2]
[311170186,1704961842808,-500.0,0.00030136,2]
[311170187,1704961842818,-500.0,0.00030136,2]
[311170188,1704961842828,-500.0,0.00030136,2]
[311170189,1704961842838,-500.0,0.00030136,2]
[311170190,1704961842848,-500.0,0.00030136,2]
[311170192,1704961842859,-501.62929449,0.00030136,2]
[311170193,1704961842870,-735.69,0.00030136,2]
[311170194,1704961842880,-10447.61,0.00030136,2]
[311170195,1704961842890,-504.99644365,0.00030136,30]
[311170196,1704961842900,-500.0,0.00030136,2]
[311170197,1704961842911,-349.44261804,0.00030136,2]
[311170198,1704961842921,-503.56838718,0.00030136,2]
[311170199,1704961842932,-500.0,0.00030136,2]
[311170200,1704961842942,-509.94278174,0.00030136,2]
[311170201,1704961842955,-748.45,0.00030136,2]
[311170202,1704961842966,-500.0,0.00030136,2]
[311170203,1704961842978,-1077.88,0.00030136,2]
[311170204,1704961842988,-500.0,0.00030136,2]
[311170205,1704961843001,-500.0,0.00030136,2]
[311170206,1704961843011,-500.0,0.00030136,2]
[311170207,1704961843022,-1097.4,0.00030136,2]
[311170208,1704961843032,-500.0,0.00030136,2]
[311170209,1704961843042,-608.4169731,0.00030136,2]
[311170210,1704961843054,-500.0,0.00030136,2]
[311170211,1704961843064,-502.73708819,0.00030136,2]
[311170212,1704961843073,-500.0,0.00030136,2]
[311170213,1704961843084,-865.33,0.00030136,2]
[311170214,1704961843096,-500.0,0.00030136,2]
[311170215,1704961843105,-500.0,0.00030136,2]
[311170216,1704961843116,-500.0,0.00030136,2]
[311170217,1704961843126,-2170.83,0.00030136,2]
[311170218,1704961843137,-500.0,0.00030136,2]
[311170219,1704961843146,-500.0,0.00030136,2]
[311170220,1704961843156,-500.0,0.00030136,2]
[311170221,1704961843166,-502.011769,0.00030136,2]
[311170222,1704961843175,-1000.0,0.00030136,2]
[311170223,1704961843184,-500.0,0.00030136,2]
[311170224,1704961843194,-500.0,0.00030136,2]
[311170225,1704961843203,-500.0,0.00030136,2]
[311170226,1704961843212,-500.0,0.00030136,2]
[311170227,1704961843222,-199.60594324,0.00030136,2]
[311170228,1704961843231,-793.97,0.00030136,2]
[311170229,1704961843241,-500.0,0.00030136,2]
[311170230,1704961843251,-500.0,0.00030136,2]
[311170231,1704961843260,-500.0,0.00030136,2]
[311170232,1704961843269,-500.0,0.00030136,2]
[311170233,1704961843279,-508.15998243,0.00030136,2]
[311170234,1704961843289,-500.9535878,0.00030136,2]
[311170235,1704961843298,-500.0,0.00030136,2]
[311170236,1704961843307,-504.3360633,0.00030136,2]
[311170237,1704961843317,-514.61116608,0.00030136,2]
[311170238,1704961843326,-545.11433363,0.00030136,2]
[311170239,1704961843336,-502.09711386,0.00030136,2]
[311170240,1704961843346,-501.13724917,0.00030136,2]
[311170241,1704961843355,-501.32871188,0.00030136,2]
[311170242,1704961843364,-500.0,0.00030136,2]
[311170243,1704961843373,-500.0,0.00030136,2]
[311170244,1704961843382,-503.76502889,0.00030136,2]
[311170245,1704961843391,-502.26759104,0.00030136,2]
[311170246,1704961843401,-948.2,0.00030136,2]
[311170247,1704961843410,-500.0,0.00030136,2]
[311170248,1704961843419,-575.77609535,0.00030136,2]
[311170249,1704961843430,-1085.34,0.00030136,2]
[311170250,1704961843441,-500.0,0.00030136,2]
[311170251,1704961843451,-500.0,0.00030136,5]
[311170252,1704961843460,-500.0,0.00030136,2]
[311170253,1704961843470,-500.0,0.00030136,2]
[311170254,1704961843568,-209.98953882,0.00030136,2]
[311170255,1704961843578,-500.0,0.00030136,2]
[311170256,1704961843588,-501.08575708,0.00030136,2]
[311170257,1704961843597,-500.0,0.00030136,2]
[311170258,1704961843606,-500.0,0.00030136,2]
[311170259,1704961843615,-502.04341116,0.00030136,2]
[311170260,1704961843625,-504.42727557,0.00030136,2]
[311170261,1704961843634,-500.0,0.00030136,2]
[311170262,1704961843646,-352.34600322,0.00030136,2]
[311170263,1704961843656,-500.0,0.00030136,2]
[311170264,1704961843665,-505.92227533,0.00030136,2]
[311170265,1704961843674,-508.57206331,0.00030136,2]
[311170266,1704961843686,-448.03715962,0.00030136,2]
[311170267,1704961843695,-507.3107083,0.00030136,2]
[311170268,1704961843707,-500.86129898,0.00030136,2]
[311170269,1704961843717,-500.0,0.00030136,2]
[311170270,1704961843726,-504.5661768,0.00030136,2]
[311170271,1704961843737,-501.67385778,0.00030136,2]
[311170272,1704961843746,-501.10276303,0.00030136,2]
[311170273,1704961843756,-500.0,0.00030136,2]
[311170274,1704961843765,-2087.46,0.00030136,2]
[311170275,1704961843775,-6134.31571473,0.00030136,10]
[311170276,1704961843784,-510.44514775,0.00030136,2]
[311170277,1704961843794,-500.0,0.00030136,2]
[311170278,1704961843803,-503.11447732,0.00030136,2]
[311170279,1704961843812,-500.0,0.00030136,2]
[311170280,1704961843822,-500.0,0.00030136,2]
[311170281,1704961843831,-412.25216866,0.00030136,2]
[311170283,1704961843840,-500.0,0.00030136,2]
[311170285,1704961843849,-155.0,0.00030137,2]
[311170286,1704961843858,-2000.0,0.0003014,2]
[311170288,1704961843867,-2000.0,0.0003015,2]
[311170289,1704961843877,-2000.0,0.0003016,2]
[311170290,1704961843886,-2000.0,0.0003017,2]
[311170292,1704961843896,-227.93301666,0.00030179,4]
[311170293,1704961843905,-4537.0819288,0.0003018,4]
[311170295,1704961843915,-1200.0,0.0003018,4]
[311170297,1704961843924,-2000.0,0.0003018,2]
[311170298,1704961843935,-19999.50423277,0.00030186,2]
[311170299,1704961843944,-192.014833,0.00030186,2]
[311170300,1704961843953,-192.014833,0.00030186,2]
[311170301,1704961843963,-2091.019858,0.0003019,2]
[311170303,1704961843972,-681.11468394,0.000302,3]
[311170304,1704961843981,-154.86783505,0.00030204,7]
[311170305,1704961843990,-5000.0,0.00030255,7]
[311170306,1704961844002,-5518.496776,0.00030255,2]
[311170307,1704961844013,-5518.496776,0.00030255,2]
[311170308,1704961844023,-500.0,0.00030273,2]
[311170310,1704961844033,-1155.181581,0.0003028,2]
[311170312,1704961844043,-1155.181581,0.0003028,2]
[311170314,1704961844052,-151.0,0.00030286,2]
[311170316,1704961844062,-153.0,0.00030311,2]
[311170318,1704961844072,-154.86783505,0.00030356,7]
[311170319,1704961844081,-816.731,0.0003038,4]
[311170321,1704961844091,-816.732,0.0003038,4]
[311170322,1704961844100,-816.731,0.0003038,4]
[311170323,1704961844109,-816.732,0.0003038,4]
[311170324,1704961844119,-816.731,0.0003038,4]
[311170325,1704961844129,-12491.86463447,0.00030399,7]
[311170326,1704961844139,-500.0,0.0003041,2]
[311170327,1704961844148,-500.0,0.0003041,2]
[311170328,1704961844158,-500.0,0.0003041,2]
[311170329,1704961844167,-500.0,0.0003041,2]
[311170330,1704961844177,-500.0,0.0003041,2]
[311170331,1704961844186,-500.25239641,0.0003041,2]
[311170332,1704961844195,-500.0,0.0003041,2]
[311170333,1704961844204,-500.0,0.0003041,2]
[311170334,1704961844213,-500.0,0.0003041,2]
[311170335,1704961844222,-500.0,0.0003041,2]
[311170336,1704961844231,-500.0,0.0003041,2]
[311170337,1704961844240,-500.0,0.0003041,2]
[311170338,1704961844250,-500.0,0.0003041,2]
[311170339,1704961844258,-500.0,0.0003041,2]
[311170340,1704961844268,-500.0,0.0003041,2]
[311170341,1704961844276,-500.0,0.0003041,2]
[311170342,1704961844285,-500.0,0.0003041,2]
[311170343,1704961844294,-500.0,0.0003041,2]
[311170344,1704961844303,-500.0,0.0003041,2]
[311170345,1704961844312,-500.0,0.0003041,2]
[311170346,1704961844321,-201.73518869,0.0003041,2]
[311170347,1704961844330,-500.0,0.0003041,2]
[311170348,1704961844339,-509.95610611,0.0003041,2]
[311170349,1704961844348,-500.0,0.0003041,2]
[311170350,1704961844358,-500.0,0.0003041,2]
[311170351,1704961844367,-256.50796494,0.0003041,2]
[311170352,1704961844377,-500.0,0.0003041,2]
[311170353,1704961844386,-596.07060748,0.0003041,2]
[311170354,1704961844395,-500.0,0.0003041,2]
[311170355,1704961844404,-500.0,0.0003041,2]
[311170356,1704961844413,-500.0,0.0003041,2]
[311170357,1704961844423,-500.0,0.0003041,2]
[311170358,1704961844434,-409.81265157,0.0003041,2]
[311170359,1704961844443,-500.0,0.0003041,2]
[311170360,1704961844452,-500.0,0.0003041,2]
[311170361,1704961844461,-500.0,0.0003041,2]
[311170362,1704961844470,-500.0,0.0003041,2]
[311170363,1704961844478,-1215.22,0.0003041,2]
[311170364,1704961844488,-500.0,0.0003041,2]
[311170365,1704961844497,-160.18086769,0.0003041,2]
[311170366,1704961844506,-500.0,0.0003041,2]
[311170367,1704961844516,-500.0,0.0003041,2]
[311170368,1704961844524,-500.0,0.0003041,2]
[311170369,1704961844535,-500.0,0.0003041,2]
[311170370,1704961844545,-345.71155924,0.0003041,2]
[311170371,1704961844554,-860.89,0.0003041,2]
[311170372,1704961844563,-512.16289169,0.0003041,2]
[311170373,1704961844572,-500.0,0.0003041,2]
[311170374,1704961844582,-500.0,0.0003041,2]
[311170375,1704961844592,-500.0,0.0003041,2]
[311170376,1704961844602,-500.0,0.0003041,2]
[311170377,1704961844611,-500.0,0.0003041,2]
[311170378,1704961844620,-518.67904986,0.0003041,2]
[311170379,1704961844630,-500.0,0.0003041,2]
[311170380,1704961844639,-500.0,0.0003041,2]
[311170381,1704961844648,-503.17641592,0.0003041,2]
[311170382,1704961844657,-500.0,0.0003041,2]
[311170383,1704961844666,-500.0,0.0003041,2]
[311170384,1704961844675,-548.17159399,0.0003041,2]
[311170385,1704961844684,-500.0,0.0003041,2]
[311170386,1704961844693,-500.0,0.0003041,2]
[311170387,1704961844703,-500.0,0.0003041,2]
[311170388,1704961844713,-500.0,0.0003041,2]
[311170389,1704961844723,-500.0,0.0003041,2]
[311170390,1704961844733,-500.0,0.0003041,2]
[311170391,1704961844744,-773.24,0.0003041,2]
[311170392,1704961844754,-500.0,0.0003041,2]
[311170393,1704961844764,-505.99846303,0.0003041,2]
[311170394,1704961844773,-500.0,0.0003041,2]
[311170395,1704961844783,-173.39777827,0.0003041,2]
[311170396,1704961844793,-500.0,0.0003041,2]
[311170397,1704961844803,-500.0,0.0003041,2]
[311170398,1704961844812,-521.24,0.0003041,2]
[311170399,1704961844821,-500.0,0.0003041,2]
[311170400,1704961844830,-150.0,0.0003041,2]
[311170401,1704961844839,-500.0,0.0003041,2]
[311170402,1704961844849,-500.0,0.0003041,2]
[311170403,1704961844858,-472.92553593,0.0003041,2]
[311170404,1704961844867,-500.0,0.0003041,2]
[311170405,1704961844876,-1874.21,0.0003041,2]
[311170406,1704961844885,-158.10850089,0.0003041,2]
[311170407,1704961844894,-641.14117884,0.0003041,2]
[311170408,1704961844903,-500.0,0.0003041,2]
[311170409,1704961844913,-160.73162302,0.0003041,2]
[311170410,1704961844922,-500.0,0.0003041,2]
[311170411,1704961844933,-625.13,0.0003041,2]
[311170412,1704961844941,-500.0,0.0003041,2]
[311170413,1704961844950,-500.0,0.0003041,2]
[311170414,1704961844961,-500.0,0.0003041,2]
[311170415,1704961844971,-500.0,0.0003041,2]
[311170416,1704961844980,-500.0,0.0003041,2]
[311170417,1704961844991,-500.0,0.0003041,2]
[311170418,1704961845002,-500.0,0.0003041,2]
[311170419,1704961845011,-500.0,0.0003041,2]
[311170420,1704961845021,-500.0,0.0003041,2]
[311170421,1704961845034,-514.32836231,0.0003041,2]
[311170422,1704961845045,-500.0,0.0003041,2]
[311170423,1704961845054,-500.0,0.0003041,2]
[311170424,1704961845063,-500.0,0.0003041,2]
[311170425,1704961845073,-500.0,0.0003041,2]
[311170426,1704961845083,-550.13592132,0.0003041,2]
[311170427,1704961845093,-590.53,0.0003041,2]
[311170428,1704961845103,-500.0,0.0003041,2]
[311170429,1704961845113,-500.0,0.0003041,2]
[311170430,1704961845124,-500.0,0.0003041,2]
[311170431,1704961845133,-500.0,0.0003041,2]
[311170432,1704961845142,-204.46283092,0.0003041,2]
[311170433,1704961845153,-500.0,0.0003041,2]
[311170434,1704961845162,-500.0,0.0003041,2]
[311170435,1704961845172,-500.0,0.0003041,2]
[311170436,1704961845182,-508.98992872,0.0003041,2]
[311170437,1704961845191,-500.0,0.0003041,2]
[311170438,1704961845200,-500.0,0.0003041,2]
[311170439,1704961845210,-500.0,0.0003041,2]
[311170440,1704961845219,-500.0,0.0003041,2]
[311170441,1704961845229,-500.0,0.0003041,2]
[311170442,1704961845239,-500.0,0.0003041,2]
[311170443,1704961845247,-500.0,0.0003041,2]
[311170444,1704961845257,-500.0,0.0003041,2]
[311170445,1704961845268,-500.0,0.0003041,2]
[311170446,1704961845278,-688.78,0.0003041,2]
[311170447,1704961845288,-500.0,0.0003041,2]
[311170448,1704961845298,-500.0,0.0003041,2]
[311170449,1704961845307,-500.0,0.0003041,2]
[311170450,1704961845317,-500.0,0.0003041,2]
[311170451,1704961845326,-500.0,0.0003041,2]
[311170452,1704961845336,-500.0,0.0003041,2]
[311170453,1704961845345,-503.63059754,0.0003041,2]
[311170454,1704961845355,-500.0,0.0003041,2]
[311170455,1704961845364,-505.28809719,0.0003041,2]
[311170456,1704961845373,-471.58118241,0.0003041,2]
[311170457,1704961845383,-500.0,0.0003041,2]
[311170458,1704961845392,-518.15706842,0.0003041,2]
[311170459,1704961845401,-219.89053407,0.0003041,2]
[311170460,1704961845410,-526.31638837,0.0003041,2]
[311170461,1704961845419,-500.0,0.0003041,2]
[311170462,1704961845429,-504.44166871,0.0003041,2]
[311170463,1704961845438,-500.0,0.0003041,2]
[311170464,1704961845447,-500.0,0.0003041,2]
[311170465,1704961845456,-500.0,0.0003041,2]
[311170466,1704961845465,-823.01,0.0003041,2]
[311170467,1704961845474,-500.0,0.0003041,2]
[311170468,1704961845483,-500.0,0.0003041,2]
[311170469,1704961845492,-500.0,0.0003041,2]
[311170470,1704961845501,-500.0,0.0003041,2]
[311170471,1704961845510,-500.0,0.0003041,2]
[311170472,1704961845519,-404.64629949,0.0003041,2]
[311170473,1704961845528,-500.0,0.0003041,2]
[311170474,1704961845538,-500.0,0.0003041,2]
[311170475,1704961845547,-623.42,0.0003041,2]
[311170476,1704961845558,-500.0,0.0003041,2]
[311170477,1704961845567,-500.0,0.0003041,2]
[311170478,1704961845577,-500.0,0.0003041,2]
[311170479,1704961845586,-507.64157396,0.0003041,2]
[311170480,1704961845595,-500.0,0.0003041,2]
[311170481,1704961845604,-234.96184003,0.0003041,2]